fUSD/lending_fUSD_20241227
["ID","MTS","AMOUNT","RATE_DAILY","PERIOD"]
[346792139,1735290639321,-921.84,0.00011189,2]
[346792140,1735290639330,-500.0,0.00011189,2]
[346792141,1735290639340,-501.92795179,0.00011189,2]
[346792142,1735290639349,-6228.61,0.00011189,2]
[346792143,1735290639358,-500.0,0.00011189,2]
[346792144,1735290639372,-501.29436997,0.00011189,2]
[346792145,1735290639381,-500.0,0.00011189,2]
[346792146,1735290639395,-500.0,0.00011189,2]
[346792147,1735290639404,-929.72,0.00011189,2]
[346792148,1735290639414,-500.0,0.00011189,2]
[346792149,1735290639423,-500.0,0.00011189,2]
[346792150,1735290639434,-500.0,0.00011189,2]
[346792151,1735290639443,-1128.85,0.00011189,2]
[346792152,1735290639452,-500.0,0.00011189,2]
[346792153,1735290639462,-500.0,0.00011189,2]
[346792154,1735290639473,-510.61519213,0.00011189,2]
[346792156,1735290639482,-500.0,0.00011189,2]
[346792157,1735290639492,-500.0,0.00011189,2]
[346792158,1735290639501,-500.0,0.00011189,2]
[346792159,1735290639510,-500.0,0.00011189,2]
[346792160,1735290639519,-334.55435176,0.00011189,2]
[346792161,1735290639529,-500.0,0.00011189,2]
[346792162,1735290639538,-4324.07,0.00011189,2]
[346792164,1735290639547,-950.52,0.00011189,2]
[346792166,1735290639556,-500.0,0.00011189,2]
[346792167,1735290639565,-500.0,0.00011189,2]
[346792168,1735290639574,-500.0,0.00011189,2]
[346792169,1735290639583,-500.0,0.00011189,2]
[346792170,1735290639592,-500.0,0.00011189,2]
[346792171,1735290639601,-968.99,0.00011189,2]
[346792172,1735290639615,-883.94,0.00011189,2]
[346792173,1735290639626,-500.0,0.00011189,2]
[346792174,1735290639635,-500.0,0.00011189,2]
[346792175,1735290639644,-500.0,0.00011189,2]
[346792176,1735290639653,-2274.72,0.00011189,2]
[346792178,1735290639663,-2310.22,0.00011189,2]
[346792179,1735290639672,-500.0,0.00011189,2]
[346792180,1735290639682,-500.0,0.00011189,2]
[346792181,1735290639691,-500.0,0.00011189,2]
[346792182,1735290639700,-1330.91,0.00011189,2]
[346792183,1735290639710,-3048.79,0.00011189,2]
[346792184,1735290639720,-500.0,0.00011189,2]
[346792185,1735290639730,-500.0,0.00011189,2]
[346792186,1735290639740,-500.0,0.00011189,2]
[346792187,1735290639750,-500.0,0.00011189,2]
[346792188,1735290639759,-500.0,0.00011189,2]
[346792189,1735290639769,-500.0,0.00011189,2]
[346792190,1735290639778,-793.9,0.00011189,2]
[346792191,1735290639788,-500.0,0.00011189,2]
[346792192,1735290639798,-1994.65,0.00011189,2]
[346792193,1735290639807,-500.0,0.00011189,2]
[346792194,1735290639817,-639.62,0.00011189,2]
[346792195,1735290639827,-688.14,0.00011189,2]
[346792196,1735290639836,-874.63,0.00011189,2]
[346792197,1735290639846,-21938.15,0.00011189,2]
[346792198,1735290639855,-500.0,0.00011189,2]
[346792199,1735290639868,-771.08,0.00011189,2]
[346792200,1735290639877,-500.0,0.00011189,2]
[346792201,1735290639887,-1389.78,0.00011189,2]
[346792202,1735290639897,-500.0,0.00011189,2]
[346792203,1735290639907,-500.0,0.00011189,2]
[346792204,1735290639916,-500.0,0.00011189,2]
[346792205,1735290639925,-439.44094621,0.00011189,2]
[346792206,1735290639934,-500.0,0.00011189,2]
[346792207,1735290639940,-500.0,0.00011189,2]
[346792208,1735290639947,-500.0,0.00011189,2]
[346792209,1735290639955,-500.0,0.00011189,2]
[346792210,1735290639961,-500.0,0.00011189,2]
[346792211,1735290639968,-2340.52,0.00011189,2]
[346792212,1735290639975,-157.912619,0.00011189,2]
[346792213,1735290639982,-2391.5926,0.00011189,2]
[346792214,1735290639989,-154.372824,0.00011189,2]
[346792215,1735290639996,-500.0,0.00011189,2]
[346792216,1735290640004,-500.0,0.00011189,2]
[346792217,1735290640013,-500.0,0.00011189,2]
[346792218,1735290640022,-673.19,0.00011189,2]
[346792219,1735290640030,-2380.711033,0.00011189,2]
[346792220,1735290640040,-500.0,0.00011189,2]
[346792221,1735290640049,-1211.56,0.00011189,2]
[346792222,1735290640059,-500.0,0.00011189,2]
[346792223,1735290640068,-985.83,0.00011189,2]
[346792224,1735290640077,-500.0,0.00011189,2]
[346792225,1735290640086,-500.0,0.00011189,2]
[346792226,1735290640095,-500.0,0.00011189,2]
[346792227,1735290640105,-1065.2,0.00011189,2]
[346792228,1735290640120,-807.96,0.00011189,2]
[346792229,1735290640130,-500.0,0.00011189,2]
[346792230,1735290640139,-2853.7,0.00011189,2]
[346792231,1735290640148,-2133.67,0.00011189,2]
[346792232,1735290640158,-500.0,0.00011189,2]
[346792233,1735290640167,-500.0,0.00011189,2]
[346792234,1735290640177,-500.0,0.00011189,2]
[346792235,1735290640187,-500.0,0.00011189,2]
[346792236,1735290640196,-836.95,0.00011189,2]
[346792237,1735290640205,-656.35,0.00011189,2]
[346792238,1735290640214,-919.12,0.00011189,2]
[346792239,1735290640223,-500.0,0.00011189,2]
[346792240,1735290640232,-1013.92,0.00011189,2]
[346792241,1735290640242,-593.3,0.00011189,2]
[346792242,1735290640251,-591.25,0.00011189,2]
[346792243,1735290640260,-500.0,0.00011189,2]
[346792244,1735290640269,-1008.16,0.00011189,2]
[346792245,1735290640278,-500.0,0.00011189,2]
[346792246,1735290640287,-500.0,0.00011189,2]
[346792247,1735290640296,-1710.25,0.00011189,2]
[346792248,1735290640305,-722.65,0.00011189,2]
[346792249,1735290640314,-4254.95,0.00011189,2]
[346792250,1735290640323,-1428.61,0.00011189,2]
[346792251,1735290640332,-1035.76,0.00011189,2]
[346792252,1735290640342,-869.23,0.00011189,2]
[346792253,1735290640350,-500.0,0.00011189,2]
[346792254,1735290640360,-500.0,0.00011189,2]
[346792255,1735290640371,-500.0,0.00011189,2]
[346792256,1735290640381,-585.12148216,0.00011189,2]
[346792257,1735290640809,-265.91851784,0.00011189,2]
[346792258,1735290640818,-500.0,0.00011189,2]
[346792259,1735290640828,-226.77148216,0.00011189,2]
[346792260,1735290641015,-1921.94851784,0.00011189,2]
[346792261,1735290641024,-500.0,0.00011189,2]
[346792262,1735290641034,-500.0,0.00011189,2]
[346792263,1735290641043,-500.0,0.00011189,2]
[346792264,1735290641053,-425.72918021,0.00011189,2]
[346792265,1735290641062,-765.61,0.00011189,2]
[346792266,1735290641071,-1159.50432539,0.00011189,2]
[346792267,1735290641700,-152.22,0.00011188,2]
[346792268,1735290641709,-1198.87567461,0.00011189,2]
[346792269,1735290641953,-500.0,0.00011189,2]
[346792270,1735290641963,-7081.94,0.00011189,2]
[346792271,1735290641973,-500.0,0.00011189,2]
[346792272,1735290641982,-1836.15,0.00011189,2]
[346792273,1735290641991,-2944.49,0.00011189,2]
[346792274,1735290642001,-1186.57,0.00011189,2]
[346792275,1735290642010,-1017.76,0.00011189,2]
[346792276,1735290642019,-500.0,0.00011189,2]
[346792277,1735290642034,-500.0,0.00011189,2]
[346792278,1735290642044,-500.0,0.00011189,2]
[346792279,1735290642053,-1569.57229196,0.00011189,2]
[346792280,1735290642142,-2651.65606525,0.00011189,2]
[346792281,1735290642154,-1499.23378264,0.00011189,2]
[346792282,1735290642165,-170.61786015,0.00011189,2]
[346792283,1735290642175,-500.0,0.00011189,2]
[346792284,1735290642184,-177.98684385,0.00011189,2]
[346792285,1735290642195,-1107.13315615,0.00011189,2]
[346792286,1735290642204,-500.0,0.00011189,2]
[346792287,1735290642213,-324.02684385,0.00011189,2]
[346792288,1735290642224,-175.97315615,0.00011189,2]
[346792289,1735290642233,-143.24484383,0.00011189,2]
[346792326,1735290642815,-500.0,0.00011188,2]
[346792327,1735290642825,-677.62,0.00011188,2]
[346792328,1735290642834,-328.72173863,0.00011189,2]
[346792329,1735290642842,-1823.23,0.00011189,2]
[346792330,1735290642851,-522.91,0.00011189,2]
[346792331,1735290642860,-500.0,0.00011189,2]
[346792332,1735290642873,-16495.92,0.00011189,2]
[346792333,1735290642884,-260.39537615,0.00011189,2]
[346792334,1735290642893,-500.0,0.00011189,2]
[346792335,1735290642902,-516.23,0.00011189,2]
[346792336,1735290642911,-1990.36,0.00011189,2]
[346792337,1735290642920,-1629.31,0.00011189,2]
[346792338,1735290642929,-500.0,0.00011189,2]
[346792339,1735290642938,-500.0,0.00011189,2]
[346792340,1735290642947,-357.04843276,0.00011189,2]
[346792341,1735290642956,-2441.73,0.00011189,2]
[346792342,1735290642965,-500.0,0.00011189,2]
[346792343,1735290642974,-500.0,0.00011189,2]
[346792344,1735290642983,-1371.48,0.00011189,2]
[346792345,1735290642992,-500.0,0.00011189,2]
[346792346,1735290643001,-500.0,0.00011189,2]
[346792347,1735290643011,-2855.26,0.00011189,2]
[346792348,1735290643020,-1071.51,0.00011189,2]
[346792349,1735290643029,-3213.71,0.00011189,2]
[346792350,1735290643038,-530.1,0.00011189,2]
[346792351,1735290643047,-500.0,0.00011189,2]
[346792352,1735290643056,-539.69,0.00011189,2]
[346792353,1735290643066,-845.72,0.00011189,2]
[346792354,1735290643075,-1663.12,0.00011189,2]
[346792355,1735290643085,-500.0,0.00011189,2]
[346792356,1735290643095,-692.36,0.00011189,2]
[346792357,1735290643105,-500.0,0.00011189,2]
[346792358,1735290643116,-695.63,0.00011189,2]
[346792360,1735290643126,-631.71,0.00011189,2]
[346792362,1735290643135,-500.0,0.00011189,2]
[346792364,1735290643147,-5973.69,0.00011189,2]
[346792366,1735290643156,-10113.98,0.00011189,2]
[346792368,1735290643165,-500.0,0.00011189,2]
[346792370,1735290643175,-500.0,0.00011189,2]
[346792372,1735290643184,-1019.73,0.00011189,2]
[346792373,1735290643193,-500.0,0.00011189,2]
[346792375,1735290643203,-10745.5,0.00011189,2]
[346792378,1735290643212,-170.18329403,0.00011189,2]
[346792379,1735290643222,-500.0,0.00011189,2]
[346792382,1735290643231,-136.38046038,0.00011189,2]
[346792383,1735290643243,-370.3721868,0.00011189,2]
[346792385,1735290643252,-180.4122678,0.00011189,2]
[346792410,1735290643496,-1060.69716,0.00011189,2]
[346792412,1735290643511,-238.4205722,0.00011189,2]
[346792414,1735290643521,-74.41890007,0.00011189,2]
[346792418,1735290643551,-9150.17109993,0.00011189,2]
[346792421,1735290643560,-500.0,0.00011189,2]
[346792422,1735290643570,-500.0,0.00011189,2]
[346792425,1735290643579,-500.0,0.00011189,2]
[346792427,1735290643589,-875.25,0.00011189,2]
[346792429,1735290643599,-500.0,0.00011189,2]
[346792430,1735290643607,-767.36,0.00011189,2]
[346792432,1735290643624,-501.97695204,0.00011189,2]
[346792434,1735290643634,-500.0,0.00011189,2]
[346792436,1735290643644,-500.0,0.00011189,2]
[346792438,1735290643655,-530.61,0.00011189,2]
[346792440,1735290643665,-500.0,0.00011189,2]
[346792442,1735290643675,-2834.21,0.00011189,2]
[346792444,1735290643686,-1157.27,0.00011189,2]
[346792446,1735290643698,-4331.22,0.00011189,2]
[346792448,1735290643708,-657.22,0.00011189,2]
[346792450,1735290643720,-500.0,0.00011189,2]
[346792452,1735290643730,-500.0,0.00011189,2]
[346792454,1735290643742,-500.0,0.00011189,2]
[346792457,1735290643754,-500.0,0.00011189,2]
[346792459,1735290643764,-500.0,0.00011189,2]
[346792460,1735290643773,-1049.68,0.00011189,2]
[346792462,1735290643783,-500.0,0.00011189,2]
[346792464,1735290643792,-1763.06,0.00011189,2]
[346792466,1735290643801,-1110.53,0.00011189,2]
[346792468,1735290643811,-500.0,0.00011189,2]
[346792470,1735290643820,-500.0,0.00011189,2]
[346792472,1735290643829,-1252.71,0.00011189,2]
[346792474,1735290643838,-2348.63,0.00011189,2]
[346792476,1735290643848,-500.0,0.00011189,2]
[346792478,1735290643857,-500.0,0.00011189,2]
[346792480,1735290643874,-500.0,0.00011189,2]
[346792483,1735290643884,-3622.96,0.00011189,2]
[346792484,1735290643895,-500.0,0.00011189,2]
[346792487,1735290643905,-713.26,0.00011189,2]
[346792489,1735290643915,-558.27,0.00011189,2]
[346792491,1735290643925,-500.0,0.00011189,2]
[346792492,1735290643934,-500.0,0.00011189,2]
[346792494,1735290643944,-501.80336329,0.00011189,2]
[346792496,1735290643954,-500.0,0.00011189,2]
[346792498,1735290643963,-500.0,0.00011189,2]
[346792500,1735290643972,-500.0,0.00011189,2]
[346792502,1735290643982,-500.0,0.00011189,2]
[346792504,1735290643991,-500.0,0.00011189,2]
[346792506,1735290644001,-500.0,0.00011189,2]
[346792508,1735290644010,-1061.6,0.00011189,2]
[346792510,1735290644020,-3027.59,0.00011189,2]
[346792512,1735290644030,-208.11858474,0.0001119,2]
[346792515,1735290644042,-444.93141526,0.0001119,2]
[346792516,1735290644051,-839.36,0.0001119,2]
[346792519,1735290644060,-612.41,0.0001119,2]
[346792520,1735290644070,-1027.19,0.0001119,2]
[346792522,1735290644080,-1188.33,0.0001119,2]
[346792524,1735290644089,-500.0,0.0001119,2]
[346792526,1735290644098,-500.0,0.0001119,2]
[346792528,1735290644108,-623.69,0.0001119,2]
[346792530,1735290644121,-607.67,0.0001119,2]
[346792532,1735290644130,-839.75,0.0001119,2]
[346792534,1735290644140,-949.81,0.0001119,2]
[346792536,1735290644150,-710.5,0.0001119,2]
[346792538,1735290644160,-561.29,0.0001119,2]
[346792540,1735290644170,-302.88978474,0.0001119,2]
[346792568,1735290644445,7204.6,0.00012022,10]
[346792721,1735290645893,-44041.3516,0.00011,2]
[346792728,1735290645954,-1188.77818353,0.00011,2]
[346792730,1735290645966,-302.92318244,0.00011,2]
[346792733,1735290645977,-1102.60000248,0.00011,2]
[346792737,1735290646010,-40976.30355393,0.00011,2]
[346792750,1735290646126,-358.67672922,0.00011,2]
[346793026,1735290753665,661.56,8.324e-05,2]
[346793027,1735290988309,300.0,0.0002,120]
[346793030,1735291134789,1000.0,0.0002,120]
[346793033,1735291246576,1576.0,0.0002,120]
[346793035,1735291529644,342.48816062,9e-05,2]
[346793036,1735291548298,166.39,7.796e-05,2]
[346793037,1735291579541,162.76,7.947e-05,2]
[346793043,1735291712009,184.17350549,0.0002,120]
[346793045,1735291719350,301.05772315,9e-05,3]
[346793088,1735291831927,-3048.23952844,9.463e-05,2]
[346793089,1735291831938,-12340.56337544,9.463e-05,2]
[346793090,1735291831950,-8511.19709612,9.463e-05,2]
[346793091,1735291831960,-1093.22,9.527e-05,2]
[346793092,1735291831970,-167.25,9.61e-05,2]
[346793093,1735291831981,-375.35,9.799e-05,2]
[346793094,1735291831990,-729.78,9.858e-05,2]
[346793095,1735291831999,-1000.0,9.905e-05,2]
[346793096,1735291832009,-250.0,9.914e-05,2]
[346793097,1735291832019,-167.36,9.957e-05,2]
[346793098,1735291832029,-400.0,0.0001,3]
[346793099,1735291832039,-2539.15,0.00010001,2]
[346793100,1735291832049,-368.08,0.00010034,2]
[346793101,1735291832060,-1954.26,0.00010042,2]
[346793102,1735291832070,-250.0,0.00010066,2]
[346793103,1735291832080,-900.0,0.000101,3]
[346793104,1735291832089,-1500.0,0.00010108,2]
[346793105,1735291832100,-157.96,0.00010137,2]
[346793106,1735291832109,-1467.746,0.0001017,2]
[346793107,1735291832119,-1400.0,0.000102,3]
[346793108,1735291832129,-1800.0,0.000103,3]
[346793109,1735291832139,-2300.0,0.000104,3]
[346793110,1735291832148,-400.0,0.000105,3]
[346793111,1735291832157,-500.0,0.00010552,2]
[346793112,1735291832167,-661.56,0.00010587,2]
[346793113,1735291832178,-400.0,0.000106,3]
[346793114,1735291832188,-400.0,0.000107,3]
[346793115,1735291832197,-4779.0,0.00010781,2]
[346793116,1735291832206,-400.0,0.000108,3]
[346793117,1735291832215,-1000.0,0.000109,3]
[346793118,1735291832225,-500.0,0.00010973,2]
[346793119,1735291832234,-2367.22,0.00010997,2]
[346793120,1735291832243,-2338.33,0.00010997,2]
[346793121,1735291832252,-1933.33403388,0.00010997,2]
[346793122,1735291832270,-86.14596612,0.00010997,2]
[346793123,1735291832279,-994.02,0.00010997,2]
[346793124,1735291832289,-6560.98,0.00010997,2]
[346793125,1735291832299,-1504.34,0.00010997,2]
[346793126,1735291832308,-4009.28,0.00010997,2]
[346793127,1735291832317,-15693.99,0.00010997,2]
[346793128,1735291832327,-4491.54,0.00010997,2]
[346793129,1735291832336,-10211.93,0.00010997,2]
[346793130,1735291832346,-500.0,0.00010997,2]
[346793131,1735291832356,-8191.61,0.00010997,2]
[346793132,1735291832370,-883.38,0.00010997,2]
[346793133,1735291832382,-6923.66,0.00010997,2]
[346793134,1735291832396,-500.0,0.00010997,2]
[346793135,1735291832410,-500.0,0.00010997,2]
[346793136,1735291832427,-500.0,0.00010997,2]
[346793138,1735291832440,-864.97,0.00010997,2]
[346793139,1735291832453,-2184.53,0.00010997,2]
[346793140,1735291832464,-584.44,0.00010997,2]
[346793141,1735291832477,-500.0,0.00010997,2]
[346793142,1735291832487,-1736.92,0.00010997,2]
[346793143,1735291832499,-772.11,0.00010997,2]
[346793144,1735291832511,-500.0,0.00010997,2]
[346793145,1735291832521,-150.122717,0.00010998,3]
[346793146,1735291832534,-150.122717,0.00010998,3]
[346793147,1735291832544,-150.122717,0.00010998,3]
[346793148,1735291832555,-150.122717,0.00010998,3]
[346793149,1735291832565,-150.122717,0.00010998,3]
[346793150,1735291832575,-150.122717,0.00010998,3]
[346793151,1735291832584,-150.122717,0.00010998,3]
[346793152,1735291832596,-150.122717,0.00010998,4]
[346793153,1735291832610,-150.122717,0.00010998,4]
[346793154,1735291832620,-1644.62,0.00010998,2]
[346793155,1735291832629,-516.19511972,0.00010998,2]
[346793156,1735291832641,-606.78,0.00010998,2]
[346793157,1735291832651,-500.0,0.00010998,2]
[346793158,1735291832660,-1402.27,0.00010998,2]
[346793159,1735291832670,-848.54,0.00010998,2]
[346793160,1735291832681,-538.42,0.00010998,2]
[346793161,1735291832690,-500.0,0.00010998,2]
[346793162,1735291832700,-1108.27,0.00010998,2]
[346793163,1735291832710,-500.0,0.00010998,2]
[346793164,1735291832719,-589.02,0.00010998,2]
[346793165,1735291832728,-2286.97,0.00010998,2]
[346793166,1735291832738,-500.0,0.00010998,2]
[346793167,1735291832747,-1590.06,0.00010998,2]
[346793168,1735291832756,-1605.25,0.00010998,2]
[346793169,1735291832766,-1056.9,0.00010998,2]
[346793170,1735291832775,-1577.45,0.00010998,2]
[346793171,1735291832787,-829.35,0.00010998,2]
[346793172,1735291832796,-500.0,0.00010998,2]
[346793173,1735291832805,-913.71,0.00010998,2]
[346793174,1735291832815,-528.18,0.00010998,2]
[346793175,1735291832824,-500.0,0.00010998,2]
[346793176,1735291832833,-1391.96,0.00010998,2]
[346793177,1735291832843,-500.0,0.00010998,2]
[346793178,1735291832852,-500.0,0.00010998,2]
[346793179,1735291832861,-500.0,0.00010998,2]
[346793180,1735291832871,-706.71,0.00010998,2]
[346793181,1735291832880,-500.0,0.00010998,2]
[346793182,1735291832890,-1833.27,0.00010998,2]
[346793183,1735291832899,-1277.34,0.00010998,2]
[346793184,1735291832908,-500.0,0.00010998,2]
[346793185,1735291832917,-1116.01,0.00010998,2]
[346793186,1735291832928,-1860.31,0.00010998,2]
[346793187,1735291832938,-500.0,0.00010998,2]
[346793188,1735291832947,-569.46,0.00010998,2]
[346793189,1735291832956,-500.0,0.00010998,2]
[346793190,1735291832965,-866.32,0.00010998,2]
[346793191,1735291832974,-749.41,0.00010998,2]
[346793192,1735291832984,-322.39266179,0.00010998,2]
[346793193,1735291832993,-537.23,0.00010998,2]
[346793194,1735291833002,-573.17,0.00010998,2]
[346793195,1735291833011,-500.0,0.00010998,2]
[346793196,1735291833021,-652.28,0.00010998,2]
[346793197,1735291833031,-500.0,0.00010998,2]
[346793198,1735291833040,-500.0,0.00010998,2]
[346793199,1735291833050,-1171.81,0.00010998,2]
[346793200,1735291833060,-500.0,0.00010998,2]
[346793201,1735291833070,-905.92,0.00010998,2]
[346793202,1735291833079,-994.38,0.00010998,2]
[346793203,1735291833089,-2336.21,0.00010998,2]
[346793204,1735291833099,-994.03,0.00010998,2]
[346793205,1735291833109,-1409.93,0.00010998,2]
[346793206,1735291833119,-2370.7,0.00010998,2]
[346793207,1735291833129,-1350.88,0.00010998,2]
[346793208,1735291833139,-500.0,0.00010998,2]
[346793209,1735291833149,-811.15,0.00010998,2]
[346793210,1735291833159,-1911.54,0.00010998,2]
[346793211,1735291833168,-654.63,0.00010998,2]
[346793212,1735291833181,-893.43,0.00010998,2]
[346793213,1735291833191,-500.0,0.00010998,2]
[346793214,1735291833202,-500.0,0.00010998,2]
[346793215,1735291833211,-306009.61399907,0.00010998,2]
[346793216,1735291833883,-418.5,0.00010998,2]
[346793217,1735291833895,-25944.79708536,0.00010998,2]
[346793218,1735291833905,-1247.14,0.00010998,2]
[346793219,1735291833914,-500.0,0.00010998,2]
[346793220,1735291833927,-1734.26,0.00010998,2]
[346793221,1735291833936,-500.0,0.00010998,2]
[346793222,1735291833947,-540.46834161,0.00010998,2]
[346793223,1735291833958,-500.0,0.00010998,2]
[346793224,1735291833968,-500.0,0.00010998,2]
[346793225,1735291833977,-164.14857466,0.00010998,2]
[346793226,1735291833987,-209.11938244,0.00010998,2]
[346793227,1735291833998,-500.0,0.00010998,2]
[346793228,1735291834008,-500.0,0.00010998,2]
[346793229,1735291834019,-500.0,0.00010998,2]
[346793230,1735291834030,-1064.12,0.00010998,2]
[346793231,1735291834040,-1300.31,0.00010998,2]
[346793232,1735291834050,-500.0,0.00010998,2]
[346793233,1735291834060,-1146.66,0.00010998,2]
[346793234,1735291834070,-2671.32,0.00010998,2]
[346793235,1735291834080,-1064.1,0.00010998,2]
[346793236,1735291834089,-4322.57,0.00010998,2]
[346793237,1735291834099,-500.0,0.00010998,2]
[346793238,1735291834109,-1478.15,0.00010998,2]
[346793239,1735291834119,-962.86,0.00010998,2]
[346793240,1735291834129,-896.86,0.00010998,2]
[346793241,1735291834138,-348.65661593,0.00010998,2]
[346793242,1735291837765,-500.0,0.00010997,2]
[346793243,1735291837774,-608.11,0.00010997,2]
[346793244,1735291837784,-586.14,0.00010997,2]
[346793245,1735291837795,-1019.77,0.00010997,2]
[346793246,1735291837805,-1797.45338407,0.00010998,2]
[346793247,1735291837814,-733.71,0.00010998,2]
[346793248,1735291837823,-861.14156886,0.00010998,2]
[346793249,1735291837835,-206.04843114,0.00010998,2]
[346793250,1735291837844,-179.82395013,0.00010998,2]
[346793251,1735291837958,-5016.01761667,0.00010998,2]
[346793252,1735291838006,-486.645,0.00010998,2]
[346793253,1735291838018,-366.9900652,0.00010998,2]
[346793254,1735291838069,-501.88602362,0.00010997,2]
[346793255,1735291838078,-1014.3090981,0.00010998,2]
[346793256,1735291838090,-67.7542699,0.00010998,2]
[346793257,1735291838100,-679.35,0.00010998,2]
[346793258,1735291838110,-1084.13,0.00010998,2]
[346793259,1735291838119,-3012.69,0.00010998,2]
[346793260,1735291838130,-500.0,0.00010998,2]
[346793261,1735291838139,-5872.89,0.00010998,2]
[346793262,1735291838149,-1332.24,0.00010998,2]
[346793263,1735291838159,-1194.23,0.00010998,2]
[346793264,1735291838168,-1608.28,0.00010998,2]
[346793265,1735291838179,-2017.38,0.00010998,2]
[346793266,1735291838189,-500.0,0.00010998,2]
[346793267,1735291838198,-1447.89,0.00010998,2]
[346793268,1735291838207,-2905.91,0.00010998,2]
[346793270,1735291838217,-500.0,0.00010998,2]
[346793272,1735291838226,-1593.82,0.00010998,2]
[346793274,1735291838235,-1248.57,0.00010998,2]
[346793276,1735291838245,-6108.95,0.00010998,2]
[346793278,1735291838254,-637.33,0.00010998,2]
[346793280,1735291838264,-500.0,0.00010998,2]
[346793282,1735291838273,-1275.16,0.00010998,2]
[346793284,1735291838283,-500.0,0.00010998,2]
[346793286,1735291838292,-1577.6,0.00010998,2]
[346793288,1735291838302,-995.96,0.00010998,2]
[346793290,1735291838312,-500.0,0.00010998,2]
[346793292,1735291838322,-500.0,0.00010998,2]
[346793294,1735291838331,-806.12,0.00010998,2]
[346793296,1735291838341,-500.0,0.00010998,2]
[346793298,1735291838350,-1272.86,0.00010998,2]
[346793300,1735291838360,-500.0,0.00010998,2]
[346793302,1735291838369,-500.0,0.00010998,2]
[346793304,1735291838379,-1451.41,0.00010998,2]
[346793306,1735291838388,-1720.57832619,0.00010998,2]
[346793307,1735291838398,-21053.18709778,0.00010998,2]
[346793310,1735291838409,-533.5,0.00010998,2]
[346793312,1735291838421,-84526.88082582,0.00010998,2]
[346793314,1735291838439,-645.44043644,0.00010998,2]
[346793411,1735291839949,-500.0,0.00010997,2]
[346793412,1735291839959,-500.0,0.00010998,2]
[346793413,1735291839969,-566.23107423,0.00010998,2]
[346793414,1735291840007,-302.71657206,0.00010998,2]
[346793415,1735291840018,-533.699318,0.00010998,2]
[346793416,1735291840029,-418.59099643,0.00010998,2]
[346793417,1735291840041,-297.82867182,0.00010998,2]
[346793418,1735291840052,-762.84,0.00010998,2]
[346793419,1735291840062,-859.757009,0.00010998,2]
[346793420,1735291840075,-622.68,0.00010998,2]
[346793421,1735291840126,-291.528,0.00010998,2]
[346793422,1735291840245,-85000.94280497,0.00010998,2]
[346793423,1735291840254,-507.91,0.00010999,2]
[346793424,1735291840263,-500.0,0.00010999,2]
[346793425,1735291840272,-714.06,0.00010999,2]
[346793426,1735291840281,-715.35,0.00010999,2]
[346793427,1735291840290,-500.0,0.00010999,2]
[346793428,1735291840298,-500.0,0.00010999,2]
[346793429,1735291840307,-500.0,0.00010999,2]
[346793430,1735291840316,-506.09821563,0.00010999,2]
[346793431,1735291840324,-500.0,0.00010999,2]
[346793432,1735291840333,-500.0,0.00010999,2]